bitfinex/quotes_ETHUSD_20241203
["timestamp","ask_amount","ask_price","bid_price","bid_amount"]
[1733201756841,0.25684858,3649.4,3649.2,3.29904691]
[1733201757046,0.3438193,3649.5,3649.2,3.29904691]
[1733201757257,0.25685085,3649.4,3649.2,3.29904691]
[1733201757462,0.3438193,3649.5,3649.2,3.29904691]
[1733201757674,0.25685025,3649.4,3649.2,3.29904691]
[1733201757877,0.3438193,3649.5,3649.2,3.29904691]
[1733201758081,0.25686778,3649.4,3649.2,3.29904691]
[1733201758286,1.19070953,3649.6,3649.2,3.29904691]
[1733201758468,0.25686744,3649.5,3649.2,3.29904691]
[1733201758783,0.25686744,3649.4,3649.2,3.29904691]
[1733201758968,1.50327253,3649.6,3649.2,3.29904691]
[1733201759169,0.46236231,3649.5,3649.2,3.29904691]
[1733201759383,0.25686802,3649.4,3649.2,3.29904691]
[1733201759586,1.50327253,3649.6,3649.2,3.29904691]
[1733201759895,0.25686408,3649.5,3649.2,0.55872691]
[1733201760058,1.19070953,3649.8,3649.5,2.74007]
[1733201760389,0.46234108,3649.7,3649.5,2.74003]
[1733201760584,0.25685616,3649.6,3649.5,2.74003]
[1733201763702,2.33623,3650.1,3649.5,0.8219]
[1733201763889,1.19070953,3650.1,3650.0,2.73972]
[1733201764056,4.94051905,3650.1,3649.5,0.8219]
[1733201764412,1.19070953,3649.9,3649.7,2.73991]
[1733201764702,1.19070953,3649.9,3649.8,2.73987]
[1733201764900,1.65299125,3649.9,3649.8,2.73987]
[1733201765391,0.25682329,3649.9,3649.8,2.73987]
[1733201766166,2.33623,3650.2,3649.9,2.73973]
[1733201766363,1.41299034,3650.1,3649.9,2.73973]
[1733201766587,1.20760336,3650.0,3649.9,2.73973]
[1733201766805,1.14552047,3650.3,3650.1,2.73965]
[1733201767006,1.14552047,3650.3,3650.2,2.73957]
[1733201767208,2.83910847,3650.3,3650.2,2.73957]
[1733201767408,3.98462894,3650.3,3650.2,2.73957]
[1733201767583,2.83910847,3650.3,3650.2,2.73957]
[1733201767911,3.98462894,3650.3,3650.2,2.80587065]
[1733201768112,3.98456345,3650.3,3650.2,2.80587065]
[1733201770275,2.63365841,3650.3,3650.2,2.80587065]
[1733201772786,2.63365841,3650.3,3650.2,2.80575814]
[1733201773127,2.83884596,3650.3,3650.2,2.80575814]
[1733201773271,2.63365841,3650.3,3650.2,0.06618814]
[1733201773473,2.63365841,3650.3,3650.1,2.73964]
[1733201773719,2.33623,3650.4,3650.2,0.06594061]
[1733201774037,2.63255895,3650.3,3650.2,0.06594061]
[1733201774506,1.20690117,3650.3,3650.2,0.06594061]
[1733201774690,2.63245703,3650.3,3650.2,0.06594061]
[1733201775075,3.3831538,3650.3,3650.2,0.06594061]
[1733201775276,5.56663023,3650.3,3649.9,0.55165454]
[1733201775605,1.19070953,3650.0,3649.9,0.55165454]
[1733201775972,1.19070953,3650.0,3649.6,2.73995]
[1733201776223,1.19070953,3649.7,3649.4,2.74016]
[1733201776375,1.19070953,3649.5,3649.4,2.74016]
[1733201777814,1.19070953,3649.7,3649.4,0.55794061]
[1733201778036,1.19070953,3649.9,3649.8,2.73987]
[1733201778248,2.14113848,3649.9,3649.8,2.73987]
[1733201778537,2.14113848,3649.9,3649.5,0.8128]
[1733201778538,1.19070953,3649.9,3649.6,2.74]
[1733201782001,1.19070953,3649.9,3649.5,0.8128]
[1733201782201,1.14552047,3650.1,3650.0,2.73971]
[1733201782540,1.14552047,3650.3,3650.2,2.73957]
[1733201782746,1.20680043,3650.3,3650.2,2.73957]
[1733201782929,2.39750996,3650.3,3650.2,2.73957]
[1733201783746,2.14095988,3650.3,3650.2,2.73957]
[1733201784048,2.14095978,3650.3,3650.2,2.73957]
[1733201784208,1.19070953,3650.3,3650.2,2.73957]
[1733201784528,2.33623,3650.5,3650.2,2.80551511]
[1733201784746,1.41188791,3650.4,3650.2,2.80551511]
[1733201785040,2.33623,3650.5,3650.2,2.80551511]
[1733201785252,1.19070953,3650.3,3650.2,2.80551511]
[1733201786720,1.19070953,3650.3,3650.2,0.06594511]
[1733201786918,3.69901942,3650.3,3650.2,0.06594511]
[1733201787237,3.69901942,3650.3,3649.9,2.73977]
[1733201787414,1.09646435,3650.3,3650.2,0.06590461]
[1733201787610,1.09646435,3650.3,3649.9,2.73977]
[1733201787611,3.69907119,3650.3,3649.9,2.73977]
[1733201787857,2.28717388,3650.3,3650.2,0.06590461]
[1733201788021,3.69907787,3650.3,3650.0,0.54483347]
[1733201788366,0.25659914,3650.2,3650.0,0.54483347]
[1733201788545,2.28717388,3650.3,3650.0,0.54483347]
[1733201788862,0.25659914,3650.2,3650.1,0.06594114]
[1733201789016,0.66658435,3650.2,3650.1,0.06594114]
[1733201789215,1.82198778,3650.2,3649.7,0.55711512]
[1733201789416,0.40998521,3650.2,3650.1,0.06594114]
[1733201789615,1.8220266,3650.2,3649.7,0.55711512]
[1733201789826,1.8121572,3650.2,3650.1,0.06594114]
[1733201790150,0.25665152,3650.1,3649.7,0.55711512]
[1733201790354,1.19070953,3649.8,3649.7,0.55711512]
[1733201790923,1.19070953,3650.0,3649.7,0.55711512]
[1733201792559,1.04862998,3649.9,3649.2,1.0908]
[1733201792859,0.7919,3649.9,3649.5,0.55636132]
[1733201793074,0.23482018,3649.8,3649.5,0.55636132]
[1733201793272,0.49156067,3649.8,3649.5,0.55636132]
[1733201793486,0.23482018,3649.8,3649.5,0.55636132]
[1733201793652,0.7689,3649.6,3648.9,0.8264]
[1733201793852,1.19070953,3649.3,3648.8,2.7406]
[1733201794183,1.19070953,3649.3,3649.1,0.53634635]
[1733201795278,1.19070953,3649.3,3649.1,3.27674635]
[1733201797868,1.19070953,3649.5,3649.1,0.53634635]
[1733201798045,1.19070953,3649.5,3649.3,2.74022]
[1733201798447,1.19070953,3649.5,3649.1,0.53634635]
[1733201798694,1.19070953,3649.2,3649.1,0.53634635]
[1733201798848,1.19070953,3649.2,3649.1,0.60294996]
[1733201800144,1.19070953,3649.4,3649.1,3.34334996]
[1733201802799,1.19070953,3649.4,3649.2,2.74032]
[1733201803157,1.19070953,3649.4,3649.3,0.06691761]
[1733201803558,1.19070953,3649.4,3649.2,2.74032]
[1733201803756,1.19070953,3649.4,3649.3,0.06691761]
[1733201804168,1.19070953,3649.4,3649.2,2.74032]
[1733201804375,1.19070953,3649.4,3649.3,0.06691761]
[1733201804801,1.19070953,3649.4,3649.2,2.74032]
[1733201805100,1.19070953,3649.4,3649.3,0.06691761]
[1733201805404,1.19070953,3649.4,3649.2,2.74032]
[1733201805560,1.38667048,3649.4,3649.3,0.06691761]
[1733201805760,2.21747048,3649.4,3649.3,0.06691761]
[1733201805956,2.21747048,3649.4,3648.0,3.0]
[1733201805957,3.16809208,3649.4,3648.8,0.55837827]
[1733201806202,2.21747048,3649.4,3648.6,2.74075]
[1733201806406,0.33629909,3649.3,3648.9,0.06706381]
[1733201806610,0.7737,3648.9,3647.6,0.274]
[1733201806763,1.19070953,3648.0,3647.6,3.01552]
[1733201806963,1.19070953,3648.0,3647.7,0.06346035]
[1733201807499,1.19070953,3648.0,3647.9,3.27811109]
[1733201807662,1.19070953,3648.0,3647.9,3.34150792]
[1733201808565,1.19070953,3648.2,3647.9,0.60027792]
[1733201808900,1.19070953,3648.2,3648.1,2.74108]
[1733201809104,1.19070953,3648.2,3648.1,0.06332369]
[1733201809270,1.19070953,3648.2,3647.9,3.27817109]
[1733201809461,1.19070953,3648.0,3647.9,3.27817109]
[1733201811663,0.7737,3648.4,3647.9,3.27817109]
[1733201811664,1.19070953,3648.2,3647.9,3.27817109]
[1733201812298,1.19070953,3648.2,3647.9,0.53688109]
[1733201812503,1.19070953,3648.2,3648.1,2.74115]
[1733201812665,1.19070953,3648.4,3648.1,1.08140311]
[1733201812867,0.8151,3649.0,3648.1,0.7536]
[1733201813203,1.19070953,3648.7,3648.5,2.74084]
[1733201814106,1.19070953,3648.7,3648.6,0.06344584]
[1733201814277,3.18731906,3648.7,3648.6,0.06344584]
[1733201814482,3.18731906,3648.7,3648.1,2.74113]
[1733201814662,1.19070953,3648.2,3648.1,2.74113]
[1733201817336,1.19070953,3648.2,3647.9,3.27816109]
[1733201817732,2.6397903,3648.4,3648.0,2.74122]
[1733201817926,2.6397903,3648.4,3647.9,0.53688109]
[1733201817927,2.6397903,3648.4,3648.1,2.74113]
[1733201819376,2.6397903,3648.4,3648.2,2.74106]
[1733201819702,0.8059,3648.7,3648.2,2.74106]
[1733201819909,1.15046903,3648.7,3648.2,2.74106]
[1733201820409,1.15046903,3648.7,3647.9,0.53688109]
[1733201820627,0.8059,3648.7,3648.3,2.741]
[1733201821720,0.8059,3648.7,3648.5,2.74082]
[1733201825054,0.8059,3648.7,3648.3,2.74093]
[1733201825624,0.8059,3648.7,3648.4,2.74089]
[1733201825821,2.6397903,3648.8,3648.4,2.74089]
[1733201826664,2.98195933,3648.8,3648.2,2.74103]
[1733201827358,0.8111,3648.7,3648.2,2.74103]
[1733201828975,0.8111,3648.7,3648.3,0.06391037]
[1733201829335,0.8111,3648.7,3648.3,2.74093]
[1733201829579,0.8111,3648.7,3648.4,0.06384234]
[1733201829776,1.19040593,3648.7,3648.4,0.06384234]
[1733201833959,0.37930593,3648.7,3648.4,0.06384234]
[1733201836758,0.37930593,3648.7,3648.1,3.55283]
[1733201836963,0.37930593,3648.7,3648.5,0.06168151]
[1733201837157,0.37930593,3648.7,3648.1,3.55283]
[1733201837158,0.37930593,3648.7,3648.3,2.741]
[1733201837365,0.55,3648.9,3648.4,0.06171807]
[1733201837558,0.20552437,3648.8,3648.4,0.06171807]
[1733201837890,0.55,3648.9,3648.1,2.74114]
[1733201837891,3.4579903,3648.5,3648.1,2.74114]
[1733201838248,0.55,3648.4,3647.4,0.7835]
[1733201838579,3.4651903,3648.0,3647.6,2.74148]
[1733201839152,0.55,3647.9,3647.1,3.0]
[1733201839349,0.55,3647.9,3647.3,0.55136057]
[1733201839555,1.19167923,3647.5,3647.3,3.29310057]
[1733201840591,1.19167923,3647.5,3647.3,0.55136057]
[1733201842668,1.99317923,3647.5,3647.3,0.55136057]
[1733201843952,1.99317923,3647.5,3647.4,0.0624967]
[1733201844176,1.00081792,3647.5,3646.9,0.55573388]
[1733201844386,1.19167923,3647.0,3646.9,0.55573388]
[1733201844772,1.19167923,3647.0,3646.7,2.74218]
[1733201844970,1.19167923,3646.8,3646.7,2.74218]
[1733201845767,1.19167923,3646.8,3646.5,2.74235]
[1733201846468,1.19167923,3646.8,3646.6,0.54991755]
[1733201847360,0.95372274,3646.7,3646.6,0.54991755]
[1733201847588,0.95372274,3646.7,3646.6,3.29218755]
[1733201850869,0.95372274,3646.9,3646.8,2.74212]
[1733201851700,0.7566,3647.5,3646.8,0.8161]
[1733201851924,0.95372274,3647.2,3647.0,2.7419]
[1733201853663,0.95372274,3647.2,3647.1,2.80521566]
[1733201858954,0.95372274,3647.2,3647.1,0.06331566]
[1733201858955,2.27432274,3647.2,3647.1,0.06331566]
[1733201859113,2.50175501,3647.2,3646.6,0.54991755]
[1733201859311,0.95372274,3646.7,3646.6,0.54991755]
[1733201860339,0.95372274,3646.7,3646.6,3.29219755]
[1733201861053,0.95372274,3647.0,3646.9,2.74205]
[1733201861417,0.95372274,3647.0,3646.9,2.8054972]
[1733201864131,0.95372274,3647.0,3646.9,2.79737211]
[1733201864456,0.94565743,3647.1,3646.9,2.79737211]
[1733201865835,0.94565743,3647.1,3647.0,2.74197]
[1733201866244,0.94565743,3647.1,3647.0,2.8053806]
[1733201866443,1.49565743,3647.1,3647.0,0.0634106]
[1733201866653,2.41482317,3647.1,3647.0,0.0634106]
[1733201866858,0.55,3647.0,3646.2,3.0]
[1733201867057,0.94565743,3646.7,3646.4,3.0]
[1733201867577,0.55,3647.0,3645.1,8.08339]
[1733201867578,0.94565743,3647.0,3646.5,1.35227994]
[1733201867743,0.94565743,3647.0,3646.7,2.74218]
[1733201869347,0.94565743,3647.0,3646.5,4.09460994]
[1733201870256,0.94565743,3647.0,3646.5,3.29790994]
[1733201871135,0.94565743,3646.7,3646.5,3.29790994]
[1733201871377,0.94565743,3646.7,3646.5,0.55557994]
[1733201871675,0.94565743,3646.7,3646.3,3.54548]
[1733201871676,0.94565743,3646.7,3646.3,2.74248]
[1733201871864,0.94565743,3646.7,3646.4,0.55656172]
[1733201872431,0.7586,3646.6,3646.4,0.55656172]
[1733201872634,0.7586,3646.6,3646.4,3.29898172]
[1733201872877,0.94565743,3646.7,3646.5,2.74235]
[1733201873959,0.94565743,3646.7,3646.6,0.06367373]
[1733201874437,1.75105743,3646.7,3646.6,0.06367373]
[1733201874875,1.75105743,3646.7,3646.3,2.74249]
[1733201875376,1.75105743,3646.7,3646.4,0.06388165]
[1733201876141,0.94565743,3646.7,3646.4,0.06388165]
[1733201877165,0.94565743,3646.7,3646.5,0.8156]
[1733201877444,0.94565743,3646.7,3646.6,2.80608845]
[1733201878575,0.7613,3647.2,3646.6,0.06380845]
[1733201878780,0.7613,3647.2,3646.8,2.74212]
[1733201879081,0.94565743,3646.9,3646.8,2.74212]
[1733201881591,0.41083652,3647.5,3647.2,2.74175]
[1733201881592,0.94565743,3647.4,3647.2,2.74175]
[1733201881756,0.94565743,3647.4,3647.2,2.74176]
[1733201882082,0.94565743,3647.4,3647.1,2.74183]
[1733201884180,0.94565743,3647.4,3647.1,2.74188]
[1733201884377,0.94565743,3647.4,3647.2,0.54711595]
[1733201885267,0.94565743,3647.4,3647.2,3.28893595]
[1733201886892,0.94565743,3647.4,3647.2,0.54711595]
[1733201887887,0.94565743,3647.4,3647.3,0.06334126]
[1733201888193,1.97396055,3647.4,3647.3,0.06334126]
[1733201888367,3.18198862,3647.4,3646.9,2.74205]
[1733201888567,0.94565743,3647.0,3646.9,2.74205]
[1733201888771,0.94565743,3647.0,3646.9,0.5476227]
[1733201888969,0.94565743,3647.0,3646.9,0.61111032]
[1733201890161,0.94565743,3647.0,3646.9,3.35316032]
[1733201890602,0.94565743,3647.3,3647.2,2.74177]
[1733201891174,0.94565743,3647.3,3647.2,2.80514784]
[1733201892713,1.14552047,3647.7,3647.6,2.74152]
[1733201892883,3.58078357,3647.7,3647.6,2.74152]
[1733201893074,3.58078357,3647.7,3647.6,0.06323151]
[1733201893075,2.15379188,3647.7,3647.6,0.06323151]
[1733201893415,2.15379188,3647.7,3647.5,2.74159]
[1733201893621,0.94565743,3647.7,3647.6,0.06323151]
[1733201893777,1.8969204,3647.7,3647.6,0.06323151]
[1733201894105,0.95126297,3647.7,3647.6,2.80475151]
[1733201894311,1.14552047,3647.9,3647.7,2.74145]
[1733201894613,1.14552047,3648.0,3647.7,2.74145]
[1733201894770,0.95113731,3647.9,3647.8,0.06315835]
[1733201895922,0.94565743,3647.9,3647.8,2.80452835]
[1733201896220,0.94565743,3647.9,3647.8,0.06315835]
[1733201897072,0.94565743,3647.9,3647.8,3.06315835]
[1733201898896,0.94565743,3647.9,3647.8,5.80452835]
[1733201900241,1.72845743,3647.9,3647.8,0.06315835]
[1733201900533,1.72845743,3647.9,3647.8,3.06315835]
[1733201901225,1.72845743,3647.9,3647.8,0.06315835]
[1733201901528,1.72845743,3647.9,3647.8,3.06315835]
[1733201901681,1.72845743,3647.9,3647.8,0.06315835]
[1733201901887,2.11042096,3647.9,3647.6,3.0]
[1733201902086,2.11042096,3647.9,3647.8,0.06254779]
[1733201902318,2.11042096,3647.9,3647.6,3.0]
[1733201902626,2.11042096,3647.9,3647.8,0.06254779]
[1733201902848,2.11042096,3647.9,3647.7,0.06258437]
[1733201903047,2.11042096,3647.9,3647.7,3.0]
[1733201903190,2.11042096,3647.9,3647.8,0.06254779]
[1733201903940,3.06091876,3647.9,3647.6,0.53815029]
[1733201904142,2.11042096,3647.9,3647.6,0.53815029]
[1733201904300,1.16476353,3647.9,3647.7,0.06258437]
[1733201907113,0.30557671,3647.8,3647.7,0.06258437]
[1733201907318,0.30557671,3647.8,3647.3,0.53679159]
[1733201907661,0.9455018,3647.4,3647.3,3.27854159]
[1733201908506,0.9455018,3647.4,3647.3,6.27854159]
[1733201909646,0.94556256,3647.4,3647.3,6.27854159]
[1733201912619,0.94556256,3647.1,3647.0,5.74197]
[1733201912823,0.94556256,3647.1,3647.0,6.29241461]
[1733201914953,0.94556256,3647.1,3647.0,7.06381461]
[1733201915152,0.8168,3647.7,3647.1,3.0]
[1733201915316,0.94556256,3647.4,3647.3,2.74169]
[1733201917749,0.8168,3648.0,3647.1,3.0]
[1733201917959,0.94556256,3647.8,3647.7,2.74145]
[1733201919347,0.94556256,3647.8,3647.7,2.80432604]
[1733201920845,0.94556256,3647.8,3647.7,3.36237522]
[1733201921977,0.94556256,3647.8,3647.7,2.80432604]
[1733201923168,0.94556256,3647.8,3647.7,3.55662604]
[1733201924459,0.94556256,3647.8,3647.7,2.80432604]
[1733201927438,0.94556256,3647.8,3647.7,0.06287604]
[1733201929266,1.70276256,3647.8,3647.7,0.06287604]
[1733201929588,1.70276256,3647.8,3647.1,2.74189]
[1733201929589,1.96759507,3647.8,3647.1,2.74189]
[1733201929733,0.94556256,3647.2,3647.1,2.74189]
[1733201930530,0.94556256,3647.2,3647.1,3.28187002]
[1733201933862,0.94556256,3647.2,3647.1,3.34477254]
[1733201942904,1.14552047,3647.9,3647.3,2.74173]
[1733201943097,1.22414714,3648.0,3647.3,2.74173]
[1733201943098,0.94556256,3647.4,3647.3,2.74173]
[1733201946807,0.20526044,3647.9,3647.3,2.74173]
[1733201947191,0.94556256,3647.4,3647.3,2.74173]
[1733201948117,0.94556256,3647.4,3647.1,1.32628002]
[1733201948433,0.94556256,3647.2,3647.1,4.06817002]
[1733201949020,0.94556256,3647.2,3647.1,4.13126556]
[1733201953869,1.425702,3647.8,3647.3,2.74168]
[1733201954074,0.94556256,3647.4,3647.3,2.74168]
[1733201957463,0.94556256,3647.4,3647.1,1.32628002]
[1733201957659,1.14552047,3647.9,3647.1,1.32628002]
[1733201957660,0.94554602,3647.3,3647.1,4.06815002]
[1733201957866,0.94554602,3647.3,3647.1,3.28185002]
[1733201959002,0.94554602,3647.3,3647.1,0.53998002]
[1733201959288,0.94554602,3647.6,3647.2,0.8261]
[1733201959656,0.94554602,3647.6,3647.3,2.74174]
[1733201959859,0.94554602,3647.6,3647.4,2.74166]
[1733201962795,0.94554602,3647.6,3647.3,2.74175]
[1733201962964,0.94554602,3647.6,3647.2,0.8261]
[1733201963148,0.94554602,3647.6,3647.4,2.7416]
[1733201963351,1.14552047,3648.0,3647.5,2.7416]
[1733201963650,1.41254589,3647.9,3647.2,0.8261]
[1733201963849,1.90642047,3648.2,3647.7,3.54999]
[1733201964088,2.35801782,3648.1,3647.7,3.54999]
[1733201964295,0.46228781,3648.0,3647.8,0.06261052]
[1733201964453,1.2020654,3647.9,3647.8,0.06261052]
[1733201966782,1.20196974,3647.9,3647.8,0.06261052]
[1733201968658,1.20193517,3647.9,3647.8,0.06261052]
[1733201970903,0.94523884,3647.9,3647.8,0.06261052]
[1733201971199,0.94523884,3647.9,3647.8,2.80398052]
[1733201974589,0.94523884,3647.9,3647.8,0.06261052]
[1733201975565,2.15268947,3647.9,3647.8,0.06261052]
[1733201979868,2.15263147,3647.9,3647.8,0.06261052]
[1733201980062,1.89605345,3647.9,3647.8,0.06261052]
[1733201980370,0.94523884,3647.9,3647.8,0.06261052]
[1733201980583,2.15238125,3647.9,3647.8,0.06261052]
[1733201981279,0.94523884,3647.9,3647.8,0.06261052]
[1733201982214,1.20182813,3647.9,3647.8,0.06261052]
[1733201982510,2.15239075,3647.9,3647.8,0.06261052]
[1733201982665,0.94523884,3647.9,3647.8,0.06261052]
[1733201990823,1.20192924,3647.9,3647.8,2.80398052]
[1733201990977,1.20193215,3647.9,3647.8,2.80398052]
[1733201991179,0.94523884,3647.9,3647.8,2.80398052]
[1733201992185,0.94523884,3647.9,3647.8,0.06261052]
[1733201992385,1.20199729,3647.9,3647.8,0.06261052]
[1733201992610,2.35783032,3647.9,3647.8,0.06261052]
[1733201992932,1.20199729,3647.9,3647.8,0.06261052]
[1733201993283,1.40740883,3647.9,3647.8,0.06261052]
[1733201993484,2.35785378,3647.9,3647.8,0.06261052]
[1733201994721,0.94523884,3647.9,3647.8,0.06261052]
[1733201995697,2.37098408,3647.9,3647.8,0.06261052]
[1733201996033,0.94523884,3647.9,3647.8,0.06261052]
[1733201996634,2.76050418,3647.9,3647.8,0.06261052]
[1733201996799,3.90602465,3647.9,3647.8,0.06261052]
[1733201997000,2.96078581,3647.9,3647.2,2.74181]
[1733201997199,1.14552047,3647.9,3647.8,0.06033293]
[1733201997443,2.57130419,3647.9,3647.4,0.55586186]
[1733201997603,1.14552047,3647.9,3647.8,0.06033293]
[1733201997804,2.98224908,3647.9,3647.4,0.55586186]
[1733201998005,1.4259137,3647.8,3647.4,0.55586186]
[1733201998203,1.14964169,3647.8,3647.4,0.55586186]
[1733201998624,1.14964169,3647.9,3647.4,0.55586186]
[1733201998826,2.57555322,3647.8,3647.5,0.06044267]
[1733201999010,0.94523884,3647.6,3647.5,0.06044267]
[1733202003756,0.94523884,3647.6,3647.5,2.80204267]
[1733202004052,0.94523884,3647.9,3647.5,3.93233312]
[1733202004254,0.94523884,3647.9,3647.5,0.85494267]
[1733202004560,2.09488053,3647.9,3647.5,0.85494267]
[1733202004754,2.09488053,3647.9,3647.6,2.74152]
[1733202005063,0.94523884,3647.9,3647.6,2.74152]
[1733202005412,0.94523884,3647.9,3647.7,2.74144]
[1733202005658,0.94523884,3647.9,3647.8,0.35963827]
[1733202006616,2.37222622,3647.9,3647.8,0.35963827]
[1733202006814,0.94523884,3647.9,3647.8,3.10100827]
[1733202007454,0.94523884,3647.9,3647.8,3.92680827]
[1733202007825,1.14964169,3648.1,3647.9,2.74124]
[1733202008058,2.09488053,3648.2,3647.9,3.13390783]
[1733202008260,1.68386462,3648.1,3647.9,3.13390783]
[1733202008420,2.09488053,3648.2,3647.9,3.13390783]
[1733202008619,0.94523884,3648.2,3647.9,3.13390783]
[1733202008927,2.09488053,3648.2,3647.9,3.13390783]
[1733202009258,1.90276708,3648.5,3648.1,2.74115]
[1733202009259,1.14964169,3648.3,3648.1,2.74115]
[1733202009457,0.25677009,3648.2,3648.1,2.74115]
[1733202009772,1.14964169,3648.4,3648.1,2.74115]
[1733202009963,0.94523884,3648.2,3647.9,2.74129]
[1733202011080,0.94523884,3648.2,3648.1,0.54991056]
[1733202011536,0.94523884,3648.2,3648.1,3.29106056]
[1733202011959,1.14964169,3648.3,3648.1,3.29106056]
[1733202012163,0.25663842,3648.2,3648.1,3.73871044]
[1733202014577,0.94523884,3648.4,3648.3,2.741]
[1733202015083,1.20132356,3648.4,3648.3,2.741]
[1733202015451,1.55928305,3648.9,3648.5,2.74079]
[1733202015651,0.94523884,3648.7,3648.5,2.74079]
[1733202015865,0.25602025,3648.6,3648.5,2.74079]
[1733202016173,0.25602025,3648.6,3648.3,2.74099]
[1733202016361,0.94523884,3648.4,3648.3,2.74099]
[1733202016561,0.94523884,3648.4,3648.3,2.741]
[1733202018869,0.94523884,3648.4,3648.3,2.741]
[1733202019272,0.94523884,3648.4,3648.3,3.5033]
[1733202019472,0.94523884,3648.4,3648.3,4.18273906]
[1733202019643,0.94523884,3648.7,3648.6,2.74072]
[1733202019997,1.20087623,3648.7,3648.6,2.74072]
[1733202020282,0.94523884,3648.7,3648.6,2.74072]
[1733202021976,0.94523884,3648.7,3648.3,0.7623]
[1733202022337,0.94523884,3648.7,3648.4,2.74092]
[1733202023089,0.25506898,3648.6,3648.3,2.741]
[1733202023247,0.94523884,3648.4,3648.1,0.54991056]
[1733202023443,0.94523884,3648.4,3648.1,3.29104056]
[1733202024987,0.94523884,3648.4,3648.2,2.74107]
[1733202025985,0.94523884,3648.4,3648.1,0.54991056]
[1733202025986,0.94523884,3648.4,3648.3,2.741]
[1733202026566,0.94523884,3648.4,3648.3,3.42610806]
[1733202026777,0.94523884,3648.7,3648.5,2.74083]
[1733202027602,0.94523884,3648.7,3648.6,2.74077]
[1733202028960,1.20044929,3648.7,3648.6,2.74077]
[1733202029155,0.94523884,3648.7,3648.6,2.74077]
[1733202029707,1.2004987,3648.7,3648.6,2.74077]
[1733202030203,1.20053656,3648.7,3648.6,2.74077]
[1733202030387,1.18658407,3648.7,3648.6,2.74077]
[1733202030596,1.93908407,3648.7,3648.6,2.74077]
[1733202030913,1.95306817,3648.7,3648.6,2.74077]
[1733202031505,1.69773884,3648.7,3648.6,2.74077]
[1733202032709,0.94523884,3648.7,3648.6,2.74077]
[1733202034199,0.94523884,3648.7,3648.6,2.79835934]
[1733202034369,1.20075505,3648.7,3648.6,2.79835934]
[1733202036913,1.20094249,3648.7,3648.6,2.79835934]
[1733202037428,1.20094249,3648.7,3648.6,0.05758934]
[1733202037765,1.20094249,3648.7,3648.4,2.74091]
[1733202038100,0.94523884,3648.7,3648.5,0.05752272]
[1733202038286,0.25579112,3648.6,3648.5,0.05752272]
[1733202038487,0.94523884,3648.7,3648.5,0.05752272]
[1733202039478,0.25579776,3648.6,3648.5,0.05752272]
[1733202039987,0.94523884,3648.6,3648.5,0.05752272]
[1733202040191,0.94523884,3648.6,3648.5,2.79837272]
[1733202040568,1.20106359,3648.6,3648.5,2.79837272]
[1733202040786,0.94523884,3648.6,3648.5,2.79837272]
[1733202041203,1.20109034,3648.6,3648.5,2.79837272]
[1733202042579,0.94523884,3648.6,3648.5,2.79837272]
[1733202042806,1.20124099,3648.6,3648.5,2.79837272]
[1733202045014,1.20124099,3648.6,3648.5,0.05752272]
[1733202045220,1.20124099,3648.6,3648.5,2.79837272]
[1733202045412,1.20124099,3648.6,3648.5,2.74085]
[1733202045710,1.20124099,3648.6,3648.5,2.79837272]
[1733202046717,1.20128449,3648.6,3648.5,2.79837272]
[1733202047877,1.20129319,3648.6,3648.5,2.79837272]
[1733202052744,1.20129319,3648.6,3648.5,0.05752272]
[1733202052915,1.20129319,3648.6,3648.5,2.79837272]
[1733202053097,1.20129319,3648.6,3648.5,2.74085]
[1733202053302,1.20129319,3648.6,3648.5,2.79837272]
[1733202054542,1.20129319,3648.6,3648.5,0.05752272]
[1733202054744,2.31787668,3648.6,3648.5,0.05752272]
[1733202054945,2.00639319,3648.6,3648.1,2.74114]
[1733202055146,0.94523884,3648.2,3648.1,2.74114]
[1733202059218,0.8118,3648.1,3647.4,2.74161]
[1733202059418,0.94523884,3647.7,3647.6,3.30169553]
[1733202061244,0.94523884,3647.7,3647.6,0.56017553]
[1733202061449,0.94523884,3647.7,3647.4,2.74165]
[1733202061611,0.94523884,3647.7,3647.5,2.74159]
[1733202061809,0.94523884,3647.7,3647.6,2.74152]
[1733202064227,0.94523884,3648.0,3647.5,0.54410945]
[1733202064424,0.94523884,3648.0,3647.7,2.74144]
[1733202066767,0.94523884,3648.0,3647.3,3.0]
[1733202066919,0.94523884,3648.0,3647.5,2.74158]
[1733202067251,0.94523884,3648.0,3647.6,2.7415]
[1733202067651,1.75703884,3648.1,3647.4,4.07283109]
[1733202067853,1.75703884,3648.1,3647.7,2.74141]
[1733202070821,1.77493884,3647.9,3647.5,2.74159]
[1733202071048,1.77493884,3647.9,3647.6,0.05646399]
[1733202071844,1.77493884,3647.9,3647.6,2.74152]
[1733202072045,1.77493884,3647.9,3647.7,0.05642741]
[1733202072763,1.77493884,3647.9,3647.7,2.79786741]
[1733202076672,1.77493884,3647.9,3647.8,2.74137]
[1733202076827,1.72233884,3648.2,3647.8,2.74137]
[1733202077174,1.72233884,3648.2,3647.9,2.74128]
[1733202077771,1.72233884,3648.2,3648.0,0.05651514]
[1733202078459,1.72233884,3648.2,3648.1,0.05643821]
[1733202078673,1.97817062,3648.2,3647.7,2.74143]
[1733202078879,1.72233884,3648.2,3648.1,0.05643821]
[1733202079185,2.43618983,3648.2,3647.7,2.74143]
[1733202081382,1.72233884,3648.2,3647.6,2.7415]
[1733202081589,0.2558958,3648.1,3648.0,0.05647478]
[1733202081950,1.72233884,3648.2,3647.6,2.7415]
[1733202082140,0.45680795,3648.1,3648.0,0.05647478]
[1733202082346,0.45680795,3648.1,3647.6,2.7415]
[1733202082655,1.72233884,3648.2,3647.6,2.7415]
[1733202082852,0.25591617,3648.1,3647.7,0.0565845]
[1733202083061,1.72233884,3648.2,3647.7,0.0565845]
[1733202083352,0.25595649,3648.1,3647.7,0.0565845]
[1733202083556,0.94523884,3647.9,3647.7,0.0565845]
[1733202083874,0.772,3647.8,3647.4,3.29436109]
[1733202084739,0.772,3647.8,3647.5,0.05665766]
[1733202085391,1.49523884,3647.6,3647.5,0.05665766]
[1733202085588,2.57783547,3647.6,3647.5,0.05665766]
[1733202085747,0.8266,3647.4,3646.8,2.842623]
[1733202085943,0.94523884,3647.2,3646.8,2.842623]
[1733202086186,0.94523884,3647.2,3646.9,0.05525819]
[1733202086551,0.94523884,3647.2,3646.8,2.842623]
[1733202086751,0.94523884,3647.2,3647.0,0.05522159]
[1733202086956,0.94523884,3647.2,3646.9,0.05525819]
[1733202087160,0.94523884,3647.2,3647.1,0.055185]
[1733202087546,0.94523884,3647.2,3646.8,2.842623]
[1733202087747,0.94523884,3647.2,3647.1,0.055185]
[1733202087947,0.94523884,3647.2,3646.8,2.842623]
[1733202088149,0.94523884,3647.2,3647.1,0.055185]